[Event "Titled Tuesday Blitz June 20 Early 2023"]
[White "LangesNasenhaar"]
[Black "Sarkar, Justin"]
[BlackFideId "2010011"]
[WhiteElo "2439"]
[BlackElo "2151"]
[Result "1-0"]
[Round "11"]
[TimeControl "180+2"]
[Date "2023.06.20"]
[WhiteClock "0:00:14"]
[BlackClock "0:00:00"]
[Board "116"]

1. d4 {[%clk 0:02:50]}  Nf6 {[%clk 0:02:58]} 2. Nc3 {[%clk 0:02:51]}  d5 {[%clk 0:02:56]} 3. Bf4 {[%clk 0:02:50]}  a6 {[%clk 0:02:56]} 4. e3 {[%clk 0:02:48]}  e6 {[%clk 0:02:50]} 5. Nf3 {[%clk 0:02:47]}  Bb4 {[%clk 0:02:42]} 6. a3 {[%clk 0:02:44]}  Bxc3+ {[%clk 0:02:21]} 7. bxc3 {[%clk 0:02:45]}  c5 {[%clk 0:02:21]} 8. c4 {[%clk 0:02:43]}  cxd4 {[%clk 0:02:17]} 9. exd4 {[%clk 0:02:43]}  O-O {[%clk 0:02:09]} 10. c5 {[%clk 0:02:33]}  b6 {[%clk 0:01:58]} 11. cxb6 {[%clk 0:02:31]}  Qxb6 {[%clk 0:01:55]} 12. Bd3 {[%clk 0:02:31]}  Bd7 {[%clk 0:01:45]} 13. O-O {[%clk 0:02:30]}  Bb5 {[%clk 0:01:43]} 14. a4 {[%clk 0:02:27]}  Bxd3 {[%clk 0:01:42]} 15. Qxd3 {[%clk 0:02:28]}  Nc6 {[%clk 0:01:31]} 16. a5 {[%clk 0:02:28]}  Nxa5 {[%clk 0:01:18]} 17. Ne5 {[%clk 0:02:22]}  Rfc8 {[%clk 0:01:02]} 18. Bg5 {[%clk 0:02:19]}  Qc7 {[%clk 0:00:47]} 19. Bxf6 {[%clk 0:02:13]}  gxf6 {[%clk 0:00:46]} 20. Ng4 {[%clk 0:02:04]}  f5 {[%clk 0:00:35]} 21. Ne5 {[%clk 0:01:44]}  Nc4 {[%clk 0:00:32]} 22. Qg3+ {[%clk 0:01:19]}  Kh8 {[%clk 0:00:28]} 23. Rae1 {[%clk 0:01:19]}  Nxe5 {[%clk 0:00:26]} 24. dxe5 {[%clk 0:01:13]}  Rg8 {[%clk 0:00:26]} 25. Qh4 {[%clk 0:01:11]}  Qxc2 {[%clk 0:00:22]} 26. Re3 {[%clk 0:01:07]}  Qc4 {[%clk 0:00:09]} 27. Qf6+ {[%clk 0:01:05]}  Rg7 {[%clk 0:00:09]} 28. Rg3 {[%clk 0:01:02]}  Rg8 {[%clk 0:00:08]} 29. Rb1 {[%clk 0:01:02]}  Qc8 {[%clk 0:00:05]} 30. h4 {[%clk 0:00:53]}  f4 {[%clk 0:00:04]} 31. Rxg7 {[%clk 0:00:45]}  Rxg7 {[%clk 0:00:04]} 32. h5 {[%clk 0:00:46]}  h6 {[%clk 0:00:04]} 33. Qxh6+ {[%clk 0:00:40]}  Kg8 {[%clk 0:00:03]} 34. Qf6 {[%clk 0:00:40]}  f3 {[%clk 0:00:03]} 35. g3 {[%clk 0:00:34]}  d4 {[%clk 0:00:03]} 36. Qxf3 {[%clk 0:00:23]}  Qd8 {[%clk 0:00:02]} 37. Rd1 {[%clk 0:00:15]}  Rg5 {[%clk 0:00:02]} 38. Qe4 {[%clk 0:00:14]}  Rxh5 {[%clk 0:00:00]} 39. Rxd4 {[%clk 0:00:14]} 1-0


[Site "https://www.chess.com"]

[Event "Titled Tuesday Blitz June 20 Early 2023"]
[White "agvania123"]
[Black "Vafin, Ayrat"]
[BlackFideId "4146530"]
[WhiteElo "2266"]
[BlackElo "2317"]
[Result "1-0"]
[Round "11"]
[TimeControl "180+2"]
[Date "2023.06.20"]
[WhiteClock "0:00:31"]
[BlackClock "0:00:01"]
[Board "117"]

1. c4 {[%clk 0:03:00]}  e6 {[%clk 0:02:59]} 2. Nc3 {[%clk 0:02:59]}  d5 {[%clk 0:02:59]} 3. d4 {[%clk 0:02:58]}  Be7 {[%clk 0:02:58]} 4. cxd5 {[%clk 0:02:58]}  exd5 {[%clk 0:02:58]} 5. Bf4 {[%clk 0:02:56]}  c6 {[%clk 0:02:59]} 6. e3 {[%clk 0:02:57]}  Bf5 {[%clk 0:02:56]} 7. Bd3 {[%clk 0:02:57]}  Bxd3 {[%clk 0:02:55]} 8. Qxd3 {[%clk 0:02:58]}  Nf6 {[%clk 0:02:50]} 9. Nf3 {[%clk 0:02:57]}  Nbd7 {[%clk 0:02:47]} 10. O-O {[%clk 0:02:56]}  O-O {[%clk 0:02:45]} 11. h3 {[%clk 0:02:56]}  Re8 {[%clk 0:02:45]} 12. Rab1 {[%clk 0:02:55]}  Nf8 {[%clk 0:02:45]} 13. Ne5 {[%clk 0:02:53]}  a5 {[%clk 0:02:40]} 14. Rfe1 {[%clk 0:02:40]}  Ng6 {[%clk 0:02:18]} 15. Bh2 {[%clk 0:02:35]}  Bd6 {[%clk 0:02:14]} 16. f4 {[%clk 0:02:20]}  Nd7 {[%clk 0:02:14]} 17. e4 {[%clk 0:02:09]}  dxe4 {[%clk 0:02:08]} 18. Qc4 {[%clk 0:01:30]}  Qe7 {[%clk 0:00:56]} 19. Nxe4 {[%clk 0:01:27]}  Nb6 {[%clk 0:00:49]} 20. Qc2 {[%clk 0:01:24]}  Nd5 {[%clk 0:00:48]} 21. Nxd6 {[%clk 0:01:15]}  Qxd6 {[%clk 0:00:48]} 22. f5 {[%clk 0:01:16]}  Nxe5 {[%clk 0:00:37]} 23. dxe5 {[%clk 0:01:16]}  Qb4 {[%clk 0:00:37]} 24. Kh1 {[%clk 0:01:04]}  Re7 {[%clk 0:00:30]} 25. a3 {[%clk 0:00:57]}  Qh4 {[%clk 0:00:24]} 26. e6 {[%clk 0:00:55]}  Rae8 {[%clk 0:00:23]} 27. Bd6 {[%clk 0:00:55]}  fxe6 {[%clk 0:00:19]} 28. Bxe7 {[%clk 0:00:55]}  Rxe7 {[%clk 0:00:19]} 29. fxe6 {[%clk 0:00:55]}  Qf6 {[%clk 0:00:10]} 30. Qe4 {[%clk 0:00:33]}  h6 {[%clk 0:00:10]} 31. Rbd1 {[%clk 0:00:32]}  Kf8 {[%clk 0:00:01]} 32. Rf1 {[%clk 0:00:31]} 1-0


[Site "https://www.chess.com"]

[Event "Titled Tuesday Blitz June 20 Early 2023"]
[White "Tuleyeva-Aketayeva, Dana"]
[Black "Gomes, Luiz Alexandre de Souza"]
[WhiteFideId "13701932"]
[BlackFideId "2102790"]
[WhiteElo "2030"]
[BlackElo "2413"]
[Result "0-1"]
[Round "11"]
[TimeControl "180+2"]
[Date "2023.06.20"]
[WhiteClock "0:00:27"]
[BlackClock "0:01:53"]
[Board "118"]

1. d4 {[%clk 0:03:00]}  Nf6 {[%clk 0:02:59]} 2. Nf3 {[%clk 0:02:59]}  g6 {[%clk 0:02:59]} 3. g3 {[%clk 0:03:00]}  Bg7 {[%clk 0:02:59]} 4. Bg2 {[%clk 0:03:01]}  O-O {[%clk 0:02:59]} 5. O-O {[%clk 0:03:02]}  d5 {[%clk 0:02:59]} 6. c4 {[%clk 0:03:02]}  c6 {[%clk 0:02:59]} 7. Nc3 {[%clk 0:03:01]}  dxc4 {[%clk 0:02:58]} 8. Nd2 {[%clk 0:02:57]}  Be6 {[%clk 0:02:56]} 9. Qa4 {[%clk 0:02:54]}  Qxd4 {[%clk 0:02:52]} 10. e3 {[%clk 0:02:53]}  Qc5 {[%clk 0:02:46]} 11. Nde4 {[%clk 0:02:39]}  Nxe4 {[%clk 0:02:45]} 12. Nxe4 {[%clk 0:02:40]}  Qb5 {[%clk 0:02:45]} 13. Qxb5 {[%clk 0:02:40]}  cxb5 {[%clk 0:02:45]} 14. Nc5 {[%clk 0:02:35]}  Nc6 {[%clk 0:02:39]} 15. Nxb7 {[%clk 0:02:34]}  Nb4 {[%clk 0:02:34]} 16. Nc5 {[%clk 0:02:28]}  Bd5 {[%clk 0:02:34]} 17. e4 {[%clk 0:02:22]}  Bc6 {[%clk 0:02:34]} 18. a3 {[%clk 0:02:15]}  Nc2 {[%clk 0:02:32]} 19. Rb1 {[%clk 0:02:14]}  Bd4 {[%clk 0:02:31]} 20. Na6 {[%clk 0:02:11]}  Rac8 {[%clk 0:02:25]} 21. Nb4 {[%clk 0:02:07]}  Nxb4 {[%clk 0:02:24]} 22. axb4 {[%clk 0:02:08]}  Rfd8 {[%clk 0:02:21]} 23. Be3 {[%clk 0:02:00]}  Bxe3 {[%clk 0:02:20]} 24. fxe3 {[%clk 0:02:01]}  Rd3 {[%clk 0:02:14]} 25. Ra1 {[%clk 0:02:00]}  Rc7 {[%clk 0:02:13]} 26. Rfe1 {[%clk 0:01:54]}  Rb3 {[%clk 0:02:13]} 27. Ra2 {[%clk 0:01:40]}  Rxb4 {[%clk 0:02:13]} 28. Rc1 {[%clk 0:01:40]}  Rb3 {[%clk 0:02:10]} 29. Kf2 {[%clk 0:01:39]}  Kg7 {[%clk 0:02:10]} 30. Bf3 {[%clk 0:01:39]}  Rd7 {[%clk 0:02:10]} 31. Be2 {[%clk 0:01:31]}  Bxe4 {[%clk 0:02:04]} 32. Ke1 {[%clk 0:01:31]}  e5 {[%clk 0:01:57]} 33. Kf2 {[%clk 0:01:11]}  Rd2 {[%clk 0:01:53]} 34. Rxa7 {[%clk 0:01:09]}  Rbxb2 {[%clk 0:01:53]} 35. Re1 {[%clk 0:00:27]}  Bd3 {[%clk 0:01:53]} 0-1


[Site "https://www.chess.com"]

[Event "Titled Tuesday Blitz June 20 Early 2023"]
[White "Gardezi, Arsal"]
[Black "Vega Gutierrez, Sabrina"]
[WhiteFideId "30949521"]
[BlackFideId "2219026"]
[WhiteElo "1906"]
[BlackElo "2209"]
[Result "0-1"]
[Round "11"]
[TimeControl "180+2"]
[Date "2023.06.20"]
[WhiteClock "0:01:32"]
[BlackClock "0:02:03"]
[Board "120"]

1. e4 {[%clk 0:02:53]}  c5 {[%clk 0:02:59]} 2. Nf3 {[%clk 0:02:53]}  Nc6 {[%clk 0:02:57]} 3. d4 {[%clk 0:02:53]}  cxd4 {[%clk 0:02:58]} 4. Nxd4 {[%clk 0:02:54]}  Nf6 {[%clk 0:02:58]} 5. Nc3 {[%clk 0:02:50]}  e5 {[%clk 0:02:58]} 6. Ndb5 {[%clk 0:02:50]}  d6 {[%clk 0:02:58]} 7. Bg5 {[%clk 0:02:51]}  a6 {[%clk 0:02:59]} 8. Na3 {[%clk 0:02:51]}  b5 {[%clk 0:03:00]} 9. Bxf6 {[%clk 0:02:51]}  gxf6 {[%clk 0:03:00]} 10. Nd5 {[%clk 0:02:52]}  Bg7 {[%clk 0:03:00]} 11. Bd3 {[%clk 0:02:51]}  Ne7 {[%clk 0:03:00]} 12. c4 {[%clk 0:02:37]}  Nxd5 {[%clk 0:02:51]} 13. cxd5 {[%clk 0:02:31]}  f5 {[%clk 0:02:46]} 14. O-O {[%clk 0:02:26]}  O-O {[%clk 0:02:42]} 15. Qh5 {[%clk 0:02:25]}  fxe4 {[%clk 0:02:41]} 16. Bxe4 {[%clk 0:02:22]}  f5 {[%clk 0:02:41]} 17. Bd3 {[%clk 0:02:21]}  e4 {[%clk 0:02:41]} 18. Be2 {[%clk 0:02:17]}  Bxb2 {[%clk 0:02:41]} 19. Nc2 {[%clk 0:02:17]}  Bxa1 {[%clk 0:02:41]} 20. Rxa1 {[%clk 0:02:18]}  Qf6 {[%clk 0:02:40]} 21. a4 {[%clk 0:02:17]}  Bd7 {[%clk 0:02:37]} 22. Ra3 {[%clk 0:02:17]}  Rac8 {[%clk 0:02:25]} 23. Rg3+ {[%clk 0:02:00]}  Kh8 {[%clk 0:02:25]} 24. Rh3 {[%clk 0:01:56]}  Qf7 {[%clk 0:02:19]} 25. Nd4 {[%clk 0:01:39]}  Qxh5 {[%clk 0:02:15]} 26. Rxh5 {[%clk 0:01:39]}  Rc1+ {[%clk 0:02:11]} 27. Bf1 {[%clk 0:01:39]}  bxa4 {[%clk 0:02:10]} 28. g3 {[%clk 0:01:36]}  Bb5 {[%clk 0:02:04]} 29. Nxb5 {[%clk 0:01:35]}  axb5 {[%clk 0:02:05]} 30. Kg2 {[%clk 0:01:32]}  a3 {[%clk 0:02:03]} 0-1


[Site "https://www.chess.com"]

[Event "Titled Tuesday Blitz June 20 Early 2023"]
[White "Buchenau, Frank"]
[Black "Cueto, Jonny"]
[WhiteFideId "4604350"]
[BlackFideId "3300145"]
[WhiteElo "2157"]
[BlackElo "2240"]
[Result "1-0"]
[Round "11"]
[TimeControl "180+2"]
[Date "2023.06.20"]
[WhiteClock "0:00:08"]
[BlackClock "0:00:06"]
[Board "121"]

1. e4 {[%clk 0:02:59]}  e6 {[%clk 0:02:51]} 2. d4 {[%clk 0:02:57]}  d5 {[%clk 0:02:52]} 3. Nc3 {[%clk 0:02:57]}  Nf6 {[%clk 0:02:52]} 4. e5 {[%clk 0:02:56]}  Nfd7 {[%clk 0:02:52]} 5. f4 {[%clk 0:02:57]}  c5 {[%clk 0:02:53]} 6. Nf3 {[%clk 0:02:57]}  Nc6 {[%clk 0:02:53]} 7. Be3 {[%clk 0:02:57]}  Be7 {[%clk 0:02:53]} 8. Ne2 {[%clk 0:02:55]}  b5 {[%clk 0:02:52]} 9. c3 {[%clk 0:02:53]}  b4 {[%clk 0:02:52]} 10. f5 {[%clk 0:02:29]}  bxc3 {[%clk 0:02:47]} 11. bxc3 {[%clk 0:02:28]}  cxd4 {[%clk 0:02:47]} 12. cxd4 {[%clk 0:02:28]}  Bb4+ {[%clk 0:02:30]} 13. Kf2 {[%clk 0:02:26]}  exf5 {[%clk 0:02:15]} 14. Nf4 {[%clk 0:02:25]}  Nb6 {[%clk 0:01:33]} 15. Bb5 {[%clk 0:02:24]}  Bd7 {[%clk 0:01:25]} 16. e6 {[%clk 0:02:18]}  O-O {[%clk 0:00:48]} 17. exd7 {[%clk 0:02:16]}  Ne7 {[%clk 0:00:49]} 18. Qb3 {[%clk 0:02:02]}  Bd6 {[%clk 0:00:47]} 19. Ne5 {[%clk 0:01:56]}  a6 {[%clk 0:00:43]} 20. Nc6 {[%clk 0:01:40]}  Qxd7 {[%clk 0:00:36]} 21. Nxe7+ {[%clk 0:01:33]}  Qxe7 {[%clk 0:00:36]} 22. Bc6 {[%clk 0:01:28]}  Rab8 {[%clk 0:00:37]} 23. Rhe1 {[%clk 0:01:16]}  Nc4 {[%clk 0:00:26]} 24. Qd3 {[%clk 0:01:05]}  Qh4+ {[%clk 0:00:19]} 25. Kg1 {[%clk 0:00:54]}  Bxf4 {[%clk 0:00:20]} 26. Bxf4 {[%clk 0:00:49]}  Qxf4 {[%clk 0:00:21]} 27. Bxd5 {[%clk 0:00:43]}  Rb2 {[%clk 0:00:21]} 28. Qxc4 {[%clk 0:00:34]}  Rd8 {[%clk 0:00:18]} 29. Rf1 {[%clk 0:00:23]}  Qe3+ {[%clk 0:00:17]} 30. Kh1 {[%clk 0:00:23]}  g5 {[%clk 0:00:17]} 31. Rae1 {[%clk 0:00:21]}  Qd2 {[%clk 0:00:15]} 32. Bxf7+ {[%clk 0:00:18]}  Kg7 {[%clk 0:00:15]} 33. Bd5 {[%clk 0:00:15]}  Rc2 {[%clk 0:00:13]} 34. Qxa6 {[%clk 0:00:13]}  Rxd5 {[%clk 0:00:11]} 35. Qb7+ {[%clk 0:00:13]}  Kh6 {[%clk 0:00:11]} 36. Qxd5 {[%clk 0:00:13]}  Rxa2 {[%clk 0:00:11]} 37. Re6+ {[%clk 0:00:13]}  Kh5 {[%clk 0:00:11]} 38. Qf3+ {[%clk 0:00:13]}  g4 {[%clk 0:00:10]} 39. Qxf5+ {[%clk 0:00:13]}  Kh4 {[%clk 0:00:06]} 40. g3+ {[%clk 0:00:08]}  Kh3 {[%clk 0:00:06]} 41. Qh5# {[%clk 0:00:08]} 1-0


[Site "https://www.chess.com"]

[Event "Titled Tuesday Blitz June 20 Early 2023"]
[White "Bogaudinov, Rushan"]
[Black "Sariego Figueredo, Wilfredo"]
[WhiteFideId "4129288"]
[BlackFideId "3500080"]
[WhiteElo "1967"]
[BlackElo "2309"]
[Result "1-0"]
[Round "11"]
[TimeControl "180+2"]
[Date "2023.06.20"]
[WhiteClock "0:00:53"]
[BlackClock "0:00:03"]
[Board "122"]

1. a3 {[%clk 0:02:59]}  d5 {[%clk 0:02:59]} 2. e3 {[%clk 0:03:00]}  e5 {[%clk 0:02:59]} 3. Nf3 {[%clk 0:03:01]}  Nc6 {[%clk 0:02:59]} 4. d4 {[%clk 0:03:01]}  e4 {[%clk 0:02:56]} 5. Ne5 {[%clk 0:03:01]}  Nxe5 {[%clk 0:02:55]} 6. dxe5 {[%clk 0:03:02]}  Qg5 {[%clk 0:02:48]} 7. Qxd5 {[%clk 0:02:59]}  Nf6 {[%clk 0:02:31]} 8. Bb5+ {[%clk 0:02:51]}  Bd7 {[%clk 0:02:21]} 9. Bxd7+ {[%clk 0:02:49]}  Nxd7 {[%clk 0:02:22]} 10. Qxe4 {[%clk 0:02:49]}  Qxe5 {[%clk 0:02:14]} 11. Qxb7 {[%clk 0:02:47]}  Rb8 {[%clk 0:02:12]} 12. Qxa7 {[%clk 0:02:45]}  Bc5 {[%clk 0:02:10]} 13. Qa4 {[%clk 0:02:44]}  O-O {[%clk 0:01:56]} 14. Qxd7 {[%clk 0:02:38]}  Rxb2 {[%clk 0:01:53]} 15. O-O {[%clk 0:02:33]}  Rxc2 {[%clk 0:01:50]} 16. Nc3 {[%clk 0:02:20]}  Bd6 {[%clk 0:01:44]} 17. g3 {[%clk 0:02:16]}  Qxc3 {[%clk 0:01:44]} 18. Rb1 {[%clk 0:02:16]}  h5 {[%clk 0:01:29]} 19. h4 {[%clk 0:02:13]}  Qe5 {[%clk 0:01:15]} 20. Qb5 {[%clk 0:02:09]}  Qe4 {[%clk 0:01:08]} 21. Bb2 {[%clk 0:01:58]}  Qf3 {[%clk 0:00:52]} 22. Qg5 {[%clk 0:01:51]}  f6 {[%clk 0:00:52]} 23. Qg6 {[%clk 0:01:47]}  Qe2 {[%clk 0:00:48]} 24. Bd4 {[%clk 0:01:42]}  Bxa3 {[%clk 0:00:35]} 25. Rbe1 {[%clk 0:01:32]}  Qd2 {[%clk 0:00:35]} 26. Qxh5 {[%clk 0:01:32]}  Bd6 {[%clk 0:00:31]} 27. Qg4 {[%clk 0:01:29]}  Ra2 {[%clk 0:00:17]} 28. h5 {[%clk 0:01:28]}  Kh7 {[%clk 0:00:16]} 29. Qg6+ {[%clk 0:01:28]}  Kh8 {[%clk 0:00:17]} 30. h6 {[%clk 0:01:25]}  gxh6 {[%clk 0:00:17]} 31. Bxf6+ {[%clk 0:01:23]}  Rxf6 {[%clk 0:00:18]} 32. Qxf6+ {[%clk 0:01:24]}  Kh7 {[%clk 0:00:18]} 33. Rd1 {[%clk 0:01:21]}  Qe2 {[%clk 0:00:17]} 34. Rxd6 {[%clk 0:01:17]}  cxd6 {[%clk 0:00:17]} 35. Qxd6 {[%clk 0:01:18]}  h5 {[%clk 0:00:17]} 36. Qf6 {[%clk 0:01:16]}  Rb2 {[%clk 0:00:15]} 37. Ra1 {[%clk 0:01:14]}  Ra2 {[%clk 0:00:15]} 38. Rb1 {[%clk 0:01:14]}  Qa6 {[%clk 0:00:12]} 39. Qf5+ {[%clk 0:01:08]}  Kh6 {[%clk 0:00:11]} 40. Qf8+ {[%clk 0:01:05]}  Kh7 {[%clk 0:00:09]} 41. Qe7+ {[%clk 0:01:03]}  Kg6 {[%clk 0:00:09]} 42. Qe4+ {[%clk 0:01:00]}  Kh6 {[%clk 0:00:07]} 43. Rb7 {[%clk 0:00:57]}  Ra1+ {[%clk 0:00:06]} 44. Kh2 {[%clk 0:00:57]}  Qf1 {[%clk 0:00:02]} 45. Rb6+ {[%clk 0:00:54]}  Kg5 {[%clk 0:00:03]} 46. Qf4# {[%clk 0:00:53]} 1-0


[Site "https://www.chess.com"]

[Event "Titled Tuesday Blitz June 20 Early 2023"]
[White "Georg, Heinz"]
[Black "Iskusnyh, Sergei"]
[WhiteFideId "4607295"]
[BlackFideId "4120027"]
[WhiteElo "2264"]
[BlackElo "2492"]
[Result "1-0"]
[Round "11"]
[TimeControl "180+2"]
[Date "2023.06.20"]
[WhiteClock "0:00:07"]
[BlackClock "0:00:00"]
[Board "126"]

1. e4 {[%clk 0:03:00]}  e6 {[%clk 0:02:57]} 2. c4 {[%clk 0:02:59]}  d5 {[%clk 0:02:54]} 3. cxd5 {[%clk 0:02:59]}  exd5 {[%clk 0:02:54]} 4. exd5 {[%clk 0:02:59]}  Nf6 {[%clk 0:02:50]} 5. Nc3 {[%clk 0:02:58]}  Nxd5 {[%clk 0:02:46]} 6. Bc4 {[%clk 0:02:57]}  Nb6 {[%clk 0:02:28]} 7. Bb3 {[%clk 0:02:53]}  Nc6 {[%clk 0:02:27]} 8. Nge2 {[%clk 0:02:51]}  Bd6 {[%clk 0:02:18]} 9. d4 {[%clk 0:02:49]}  O-O {[%clk 0:02:17]} 10. Be3 {[%clk 0:02:45]}  Na5 {[%clk 0:02:14]} 11. d5 {[%clk 0:02:35]}  Nac4 {[%clk 0:02:08]} 12. Bxb6 {[%clk 0:02:19]}  Nxb6 {[%clk 0:02:05]} 13. Qd3 {[%clk 0:02:13]}  a5 {[%clk 0:01:45]} 14. O-O-O {[%clk 0:02:05]}  Qg5+ {[%clk 0:01:42]} 15. f4 {[%clk 0:01:58]}  Bxf4+ {[%clk 0:01:41]} 16. Nxf4 {[%clk 0:01:58]}  Qxf4+ {[%clk 0:01:41]} 17. Rd2 {[%clk 0:01:54]}  Bf5 {[%clk 0:01:39]} 18. Qb5 {[%clk 0:01:44]}  a4 {[%clk 0:01:30]} 19. Bc2 {[%clk 0:01:40]}  a3 {[%clk 0:01:24]} 20. b3 {[%clk 0:01:31]}  Bg6 {[%clk 0:01:18]} 21. h4 {[%clk 0:01:22]}  Rfe8 {[%clk 0:00:32]} 22. h5 {[%clk 0:01:14]}  Bxc2 {[%clk 0:00:30]} 23. Kxc2 {[%clk 0:01:14]}  Re3 {[%clk 0:00:26]} 24. h6 {[%clk 0:00:56]}  Qe5 {[%clk 0:00:24]} 25. Qc5 {[%clk 0:00:46]}  Nd7 {[%clk 0:00:11]} 26. Qc4 {[%clk 0:00:40]}  Qf5+ {[%clk 0:00:07]} 27. Kc1 {[%clk 0:00:34]}  Ne5 {[%clk 0:00:08]} 28. Qd4 {[%clk 0:00:27]}  Qg5 {[%clk 0:00:07]} 29. Ne4 {[%clk 0:00:19]}  Qf4 {[%clk 0:00:06]} 30. Nc3 {[%clk 0:00:12]}  Qxd4 {[%clk 0:00:05]} 31. Rxd4 {[%clk 0:00:11]}  Rxc3+ {[%clk 0:00:05]} 32. Kd2 {[%clk 0:00:11]}  Rg3 {[%clk 0:00:06]} 33. hxg7 {[%clk 0:00:10]}  Rxg2+ {[%clk 0:00:05]} 34. Kc3 {[%clk 0:00:09]}  Rd8 {[%clk 0:00:04]} 35. Re1 {[%clk 0:00:08]}  Rg3+ {[%clk 0:00:04]} 36. Kb4 {[%clk 0:00:07]}  Nc6+ {[%clk 0:00:02]} 37. dxc6 {[%clk 0:00:06]}  Rxd4+ {[%clk 0:00:00]} 38. Kc5 {[%clk 0:00:07]} 1-0


[Site "https://www.chess.com"]

[Event "Titled Tuesday Blitz June 20 Early 2023"]
[White "Kohler, Aran"]
[Black "Saim, Mohamed Ilias"]
[WhiteFideId "1002856"]
[BlackFideId "7900465"]
[WhiteElo "2302"]
[BlackElo "2063"]
[Result "0-1"]
[Round "11"]
[TimeControl "180+2"]
[Date "2023.06.20"]
[WhiteClock "0:00:07"]
[BlackClock "0:00:09"]
[Board "132"]

1. e4 {[%clk 0:02:58]}  c6 {[%clk 0:02:59]} 2. d4 {[%clk 0:02:57]}  d5 {[%clk 0:03:00]} 3. e5 {[%clk 0:02:57]}  Bf5 {[%clk 0:03:00]} 4. Nc3 {[%clk 0:02:57]}  e6 {[%clk 0:02:58]} 5. g4 {[%clk 0:02:58]}  Bg6 {[%clk 0:02:57]} 6. Nge2 {[%clk 0:02:58]}  c5 {[%clk 0:02:54]} 7. Be3 {[%clk 0:02:58]}  Nc6 {[%clk 0:02:54]} 8. h4 {[%clk 0:02:51]}  cxd4 {[%clk 0:02:51]} 9. Nxd4 {[%clk 0:02:50]}  h5 {[%clk 0:02:36]} 10. Bb5 {[%clk 0:02:35]}  Rc8 {[%clk 0:02:27]} 11. g5 {[%clk 0:02:25]}  Ne7 {[%clk 0:02:18]} 12. f4 {[%clk 0:02:17]}  a6 {[%clk 0:02:15]} 13. Bd3 {[%clk 0:02:00]}  Bxd3 {[%clk 0:01:58]} 14. Qxd3 {[%clk 0:01:58]}  g6 {[%clk 0:01:54]} 15. O-O-O {[%clk 0:01:56]}  Nxd4 {[%clk 0:01:48]} 16. Bxd4 {[%clk 0:01:54]}  Nf5 {[%clk 0:01:45]} 17. Kb1 {[%clk 0:01:53]}  Rc4 {[%clk 0:01:41]} 18. Bf2 {[%clk 0:01:52]}  Rxf4 {[%clk 0:01:37]} 19. Be3 {[%clk 0:01:35]}  Rxh4 {[%clk 0:01:17]} 20. Rxh4 {[%clk 0:01:30]}  Nxh4 {[%clk 0:01:18]} 21. Ne4 {[%clk 0:01:23]}  Bg7 {[%clk 0:01:06]} 22. Nd6+ {[%clk 0:01:21]}  Kf8 {[%clk 0:01:01]} 23. Bc5 {[%clk 0:01:10]}  Kg8 {[%clk 0:00:58]} 24. Nxb7 {[%clk 0:01:05]}  Qc7 {[%clk 0:00:47]} 25. Qxa6 {[%clk 0:01:03]}  Bxe5 {[%clk 0:00:42]} 26. Bd6 {[%clk 0:00:50]}  Bxd6 {[%clk 0:00:40]} 27. Nxd6 {[%clk 0:00:50]}  Nf5 {[%clk 0:00:37]} 28. Ne8 {[%clk 0:00:46]}  Qb8 {[%clk 0:00:30]} 29. Nf6+ {[%clk 0:00:45]}  Kg7 {[%clk 0:00:29]} 30. a4 {[%clk 0:00:28]}  Rc8 {[%clk 0:00:27]} 31. a5 {[%clk 0:00:24]}  Qc7 {[%clk 0:00:26]} 32. c3 {[%clk 0:00:24]}  Rb8 {[%clk 0:00:24]} 33. Ka1 {[%clk 0:00:21]}  Qd8 {[%clk 0:00:16]} 34. c4 {[%clk 0:00:19]}  Ra8 {[%clk 0:00:15]} 35. Qc6 {[%clk 0:00:16]}  Rxa5+ {[%clk 0:00:15]} 36. Kb1 {[%clk 0:00:16]}  Qa8 {[%clk 0:00:08]} 37. c5 {[%clk 0:00:15]}  Qxc6 {[%clk 0:00:07]} 38. Nxh5+ {[%clk 0:00:12]}  gxh5 {[%clk 0:00:08]} 39. Rc1 {[%clk 0:00:12]}  Rxc5 {[%clk 0:00:08]} 40. Rd1 {[%clk 0:00:10]}  d4 {[%clk 0:00:07]} 41. b3 {[%clk 0:00:10]}  Qe4+ {[%clk 0:00:07]} 42. Kb2 {[%clk 0:00:10]}  Qe2+ {[%clk 0:00:07]} 43. Ka3 {[%clk 0:00:09]}  Ne3 {[%clk 0:00:08]} 44. Kb4 {[%clk 0:00:10]}  Nc2+ {[%clk 0:00:08]} 45. Kxc5 {[%clk 0:00:10]}  d3 {[%clk 0:00:09]} 46. Rc1 {[%clk 0:00:10]}  d2 {[%clk 0:00:08]} 47. Rxc2 {[%clk 0:00:10]}  Qe3+ {[%clk 0:00:09]} 48. Kc4 {[%clk 0:00:09]}  d1=Q {[%clk 0:00:09]} 49. Rc3 {[%clk 0:00:10]}  Qdd4+ {[%clk 0:00:09]} 50. Kb5 {[%clk 0:00:07]}  Qexc3 {[%clk 0:00:09]} 0-1


[Site "https://www.chess.com"]

[Event "Titled Tuesday Blitz June 20 Early 2023"]
[White "Antonio, Jorge Carlos"]
[Black "Cardenas Carbajal, Nilson"]
[WhiteFideId "113190"]
[BlackFideId "8401128"]
[WhiteElo "2247"]
[BlackElo "1972"]
[Result "0-1"]
[Round "11"]
[TimeControl "180+2"]
[Date "2023.06.20"]
[WhiteClock "0:00:38"]
[BlackClock "0:01:15"]
[Board "133"]

1. d4 {[%clk 0:02:58]}  Nf6 {[%clk 0:02:57]} 2. Nf3 {[%clk 0:02:58]}  g6 {[%clk 0:02:56]} 3. c4 {[%clk 0:02:58]}  Bg7 {[%clk 0:02:56]} 4. Nc3 {[%clk 0:02:58]}  d5 {[%clk 0:02:56]} 5. Bg5 {[%clk 0:02:57]}  Ne4 {[%clk 0:02:51]} 6. Bf4 {[%clk 0:02:56]}  Nxc3 {[%clk 0:02:50]} 7. bxc3 {[%clk 0:02:56]}  O-O {[%clk 0:02:49]} 8. e3 {[%clk 0:02:55]}  c6 {[%clk 0:02:50]} 9. cxd5 {[%clk 0:02:54]}  cxd5 {[%clk 0:02:48]} 10. Bd3 {[%clk 0:02:53]}  Nc6 {[%clk 0:02:49]} 11. O-O {[%clk 0:02:51]}  a6 {[%clk 0:02:49]} 12. a4 {[%clk 0:02:51]}  Bd7 {[%clk 0:02:40]} 13. Rb1 {[%clk 0:02:46]}  Na5 {[%clk 0:02:40]} 14. Nd2 {[%clk 0:02:44]}  Qe8 {[%clk 0:02:34]} 15. Rb4 {[%clk 0:02:38]}  e5 {[%clk 0:02:27]} 16. Bg3 {[%clk 0:02:35]}  Rc8 {[%clk 0:02:24]} 17. c4 {[%clk 0:02:28]}  exd4 {[%clk 0:02:16]} 18. Bd6 {[%clk 0:02:01]}  dxe3 {[%clk 0:02:06]} 19. Bxf8 {[%clk 0:01:54]}  Bxf8 {[%clk 0:02:05]} 20. Rb1 {[%clk 0:01:46]}  exd2 {[%clk 0:02:01]} 21. Qxd2 {[%clk 0:01:45]}  dxc4 {[%clk 0:02:01]} 22. Bxg6 {[%clk 0:01:22]}  hxg6 {[%clk 0:01:53]} 23. Qxa5 {[%clk 0:01:21]}  Bc6 {[%clk 0:01:45]} 24. Rfe1 {[%clk 0:01:19]}  Qd7 {[%clk 0:01:39]} 25. Qc3 {[%clk 0:01:07]}  Qd5 {[%clk 0:01:35]} 26. f3 {[%clk 0:01:07]}  Bg7 {[%clk 0:01:28]} 27. Qc2 {[%clk 0:00:57]}  c3 {[%clk 0:01:26]} 28. Rbd1 {[%clk 0:00:57]}  Qc4 {[%clk 0:01:21]} 29. Rd3 {[%clk 0:00:52]}  Bxa4 {[%clk 0:01:18]} 30. Qc1 {[%clk 0:00:38]}  Qxd3 {[%clk 0:01:15]} 0-1


[Site "https://www.chess.com"]